fUSD/lending_fUSD_20250302
["ID","MTS","AMOUNT","RATE_DAILY","PERIOD"]
[355140722,1740934281006,-500.0,0.00027469,2]
[355140723,1740934281021,-500.0,0.00027469,2]
[355140724,1740934281031,-500.0,0.00027469,2]
[355140725,1740934281040,-542.62,0.00027469,2]
[355140726,1740934281050,-500.0,0.00027469,2]
[355140727,1740934281059,-500.0,0.00027469,2]
[355140728,1740934281069,-506.19486546,0.00027469,2]
[355140729,1740934281079,-564.57,0.00027469,2]
[355140730,1740934281088,-500.0,0.00027469,2]
[355140731,1740934281098,-500.0,0.00027469,2]
[355140732,1740934281109,-500.0,0.00027469,2]
[355140733,1740934281119,-500.0,0.00027469,2]
[355140734,1740934281129,-500.0,0.00027469,2]
[355140735,1740934281139,-500.0,0.00027469,2]
[355140736,1740934281149,-500.0,0.00027469,2]
[355140737,1740934281160,-500.0,0.00027469,2]
[355140738,1740934281170,-500.0,0.00027469,2]
[355140739,1740934281180,-500.0,0.00027469,2]
[355140740,1740934281190,-500.0,0.00027469,2]
[355140741,1740934281200,-500.0,0.00027469,2]
[355140742,1740934281210,-500.0,0.00027469,2]
[355140743,1740934281219,-246.37,0.00027469,2]
[355140744,1740934281230,-500.0,0.00027469,2]
[355140745,1740934281240,-500.0,0.00027469,2]
[355140746,1740934281250,-502.79,0.00027469,2]
[355140747,1740934281265,-500.0,0.00027469,2]
[355140748,1740934281276,-500.0,0.00027469,2]
[355140749,1740934281286,-500.0,0.00027469,2]
[355140750,1740934281296,-504.45,0.00027469,2]
[355140751,1740934281307,-548.39,0.00027469,2]
[355140752,1740934281317,-500.0,0.00027469,2]
[355140753,1740934281327,-500.0,0.00027469,2]
[355140754,1740934281338,-501.48,0.00027469,2]
[355140755,1740934281348,-500.0,0.00027469,2]
[355140756,1740934281358,-500.0,0.00027469,2]
[355140757,1740934281367,-500.0,0.00027469,2]
[355140758,1740934281378,-500.0,0.00027469,2]
[355140759,1740934281388,-1182.18,0.00027469,2]
[355140760,1740934281399,-500.0,0.00027469,2]
[355140761,1740934281411,-537.36729005,0.00027469,2]
[355140762,1740934281422,-500.0,0.00027469,2]
[355140763,1740934281432,-500.0,0.00027469,2]
[355140764,1740934281442,-500.0,0.00027469,2]
[355140765,1740934281452,-500.0,0.00027469,2]
[355140766,1740934281463,-556.35,0.00027469,2]
[355140767,1740934281472,-500.0,0.00027469,2]
[355140768,1740934281482,-500.0,0.00027469,2]
[355140769,1740934281492,-500.0,0.00027469,2]
[355140770,1740934281503,-500.0,0.00027469,2]
[355140771,1740934281516,-500.0,0.00027469,2]
[355140772,1740934281526,-500.0,0.00027469,2]
[355140773,1740934281536,-242.74,0.00027469,2]
[355140774,1740934281546,-680.67,0.00027469,2]
[355140775,1740934281556,-500.0,0.00027469,2]
[355140776,1740934281565,-500.0,0.00027469,2]
[355140777,1740934281575,-500.0,0.00027469,2]
[355140778,1740934281584,-500.0,0.00027469,2]
[355140779,1740934281594,-500.0,0.00027469,2]
[355140780,1740934281603,-500.0,0.00027469,2]
[355140781,1740934281613,-500.0,0.00027469,2]
[355140782,1740934281623,-500.0,0.00027469,2]
[355140783,1740934281633,-587.6,0.00027469,2]
[355140784,1740934281643,-500.0,0.00027469,2]
[355140785,1740934281654,-500.0,0.00027469,2]
[355140786,1740934281663,-500.0,0.00027469,2]
[355140787,1740934281673,-500.0,0.00027469,2]
[355140788,1740934281683,-500.0,0.00027469,2]
[355140789,1740934281694,-500.0,0.00027469,2]
[355140790,1740934281706,-500.0,0.00027469,2]
[355140791,1740934281716,-726.88,0.00027469,2]
[355140792,1740934281728,-500.0,0.00027469,2]
[355140793,1740934281739,-500.0,0.00027469,2]
[355140794,1740934281749,-500.0,0.00027469,2]
[355140795,1740934281763,-661.59,0.00027469,2]
[355140796,1740934281773,-500.0,0.00027469,2]
[355140797,1740934281785,-177.27185263,0.00027469,2]
[355140798,1740934281795,-802.77,0.00027469,2]
[355140799,1740934281805,-190.44573391,0.00027469,2]
[355140800,1740934281815,-500.0,0.00027469,2]
[355140801,1740934281825,-500.0,0.00027469,2]
[355140802,1740934281836,-500.0,0.00027469,2]
[355140803,1740934281845,-500.0,0.00027469,2]
[355140804,1740934281855,-500.0,0.00027469,2]
[355140805,1740934281866,-500.0,0.00027469,2]
[355140806,1740934281876,-500.0,0.00027469,2]
[355140807,1740934281887,-500.0,0.00027469,2]
[355140808,1740934281898,-1069.61,0.00027469,2]
[355140809,1740934281909,-500.0,0.00027469,2]
[355140810,1740934281921,-1034.02,0.00027469,2]
[355140811,1740934281932,-500.0,0.00027469,2]
[355140812,1740934281943,-500.0,0.00027469,2]
[355140813,1740934281952,-1007.72,0.00027469,2]
[355140814,1740934281963,-500.0,0.00027469,2]
[355140815,1740934281973,-500.0,0.00027469,2]
[355140816,1740934281983,-500.0,0.00027469,2]
[355140817,1740934281993,-596.18,0.00027469,2]
[355140818,1740934282003,-500.0,0.00027469,2]
[355140819,1740934282018,-887.68,0.00027469,2]
[355140820,1740934282028,-500.0,0.00027469,2]
[355140821,1740934282037,-500.0,0.00027469,2]
[355140822,1740934282047,-500.0,0.00027469,2]
[355140823,1740934282056,-500.0,0.00027469,2]
[355140824,1740934282066,-500.0,0.00027469,2]
[355140825,1740934282074,-500.0,0.00027469,2]
[355140826,1740934282084,-500.0,0.00027469,2]
[355140827,1740934282093,-512.73,0.00027469,2]
[355140828,1740934282102,-500.0,0.00027469,2]
[355140829,1740934282111,-500.0,0.00027469,2]
[355140830,1740934282121,-796.29,0.00027469,2]
[355140831,1740934282131,-500.0,0.00027469,2]
[355140832,1740934282140,-500.0,0.00027469,2]
[355140833,1740934282150,-512.31,0.00027469,2]
[355140834,1740934282160,-500.0,0.00027469,2]
[355140835,1740934282169,-504.61,0.00027469,2]
[355140836,1740934282179,-500.0,0.00027469,2]
[355140837,1740934282189,-500.0,0.00027469,2]
[355140838,1740934282199,-500.0,0.00027469,2]
[355140839,1740934282209,-613.62,0.00027469,2]
[355140840,1740934282219,-573.04781237,0.00027469,2]
[355140841,1740934282228,-500.0,0.00027469,2]
[355140842,1740934282238,-500.0,0.00027469,2]
[355140843,1740934282248,-500.0,0.00027469,2]
[355140844,1740934282257,-500.0,0.00027469,2]
[355140845,1740934282270,-500.0,0.00027469,2]
[355140846,1740934282279,-767.83,0.00027469,2]
[355140847,1740934282288,-500.0,0.00027469,2]
[355140848,1740934282298,-776.69,0.00027469,2]
[355140849,1740934282308,-500.0,0.00027469,2]
[355140850,1740934282318,-500.0,0.00027469,2]
[355140851,1740934282329,-523.84,0.00027469,2]
[355140852,1740934282338,-500.0,0.00027469,2]
[355140853,1740934282348,-940.2,0.00027469,2]
[355140854,1740934282357,-515.42738718,0.00027469,2]
[355140855,1740934282367,-790.97,0.00027469,2]
[355140856,1740934282377,-500.0,0.00027469,2]
[355140857,1740934282387,-553.5,0.00027469,2]
[355140858,1740934282397,-500.0,0.00027469,2]
[355140859,1740934282407,-1094.02,0.00027469,2]
[355140860,1740934282416,-600.93,0.00027469,2]
[355140861,1740934282425,-500.0,0.00027469,2]
[355140862,1740934282435,-1052.79,0.00027469,2]
[355140863,1740934282444,-500.0,0.00027469,2]
[355140864,1740934282454,-500.0,0.00027469,2]
[355140865,1740934282466,-500.0,0.00027469,7]
[355140866,1740934282476,-500.0,0.00027469,2]
[355140867,1740934282622,-500.0,0.00027469,2]
[355140868,1740934282632,-500.0,0.00027469,2]
[355140869,1740934282643,-500.0,0.00027469,2]
[355140870,1740934282654,-500.0,0.00027469,2]
[355140871,1740934282664,-500.0,0.00027469,2]
[355140872,1740934282675,-500.0,0.00027469,2]
[355140873,1740934282685,-588.04,0.00027469,2]
[355140874,1740934282696,-641.32,0.00027469,2]
[355140875,1740934282710,-500.0,0.00027469,2]
[355140876,1740934282720,-500.0,0.00027469,2]
[355140877,1740934282731,-500.0,0.00027469,2]
[355140878,1740934282741,-500.0,0.00027469,2]
[355140879,1740934282752,-500.0,0.00027469,120]
[355140880,1740934282763,-884.29,0.00027469,2]
[355140881,1740934282780,-500.0,0.00027469,2]
[355140882,1740934282791,-1045.02,0.00027469,2]
[355140883,1740934282802,-324.6,0.00027469,2]
[355140884,1740934282813,-500.0,0.00027469,2]
[355140885,1740934282824,-500.0,0.00027469,2]
[355140886,1740934282834,-918.11,0.00027469,2]
[355140887,1740934282845,-256.51,0.00027469,2]
[355140888,1740934282855,-500.0,0.00027469,2]
[355140889,1740934282866,-500.0,0.00027469,2]
[355140890,1740934282877,-500.0,0.00027469,2]
[355140891,1740934282887,-500.0,0.00027469,2]
[355140892,1740934282897,-500.0,0.00027469,2]
[355140893,1740934282908,-208.09,0.00027469,2]
[355140894,1740934282919,-1046.65,0.00027469,2]
[355140895,1740934282929,-500.0,0.00027469,2]
[355140896,1740934282940,-424.33,0.00027469,2]
[355140897,1740934282950,-500.0,0.00027469,2]
[355140898,1740934282960,-500.0,0.00027469,2]
[355140899,1740934282970,-266.92,0.00027469,2]
[355140900,1740934282981,-500.0,0.00027469,2]
[355140901,1740934282991,-500.0,0.00027469,2]
[355140902,1740934283002,-500.0,0.00027469,2]
[355140903,1740934283015,-536.74,0.00027469,2]
[355140904,1740934283025,-500.0,0.00027469,2]
[355140905,1740934283036,-500.0,0.00027469,2]
[355140906,1740934283048,-500.0,0.00027469,2]
[355140907,1740934283059,-500.0,0.00027469,2]
[355140908,1740934283069,-500.0,0.00027469,2]
[355140909,1740934283079,-500.0,0.00027469,2]
[355140910,1740934283090,-161.11,0.00027469,2]
[355140911,1740934283100,-500.0,0.00027469,2]
[355140912,1740934283110,-500.0,0.00027469,2]
[355140913,1740934283121,-500.0,0.00027469,2]
[355140914,1740934283131,-500.0,0.00027469,2]
[355140915,1740934283141,-529.8,0.00027469,2]
[355140916,1740934283150,-500.0,0.00027469,2]
[355140917,1740934283160,-500.0,0.00027469,2]
[355140918,1740934283170,-500.0,0.00027469,2]
[355140919,1740934283180,-537.47574185,0.0002761,2]
[355140920,1740934283189,-612.24404387,0.00027624,4]
[355140921,1740934283200,-3521.23862221,0.00027642,2]
[355140922,1740934283209,-1000.0,0.00027676,2]
[355140923,1740934283220,-249.0,0.00027712,30]
[355140924,1740934283230,-249.0,0.00027722,30]
[355140925,1740934283239,-249.0,0.00027732,30]
[355140926,1740934283249,-601.32,0.00027741,2]
[355140927,1740934283259,-1876.76,0.00027741,2]
[355140928,1740934283274,-1549.45,0.00027741,2]
[355140929,1740934283283,-500.0,0.00027741,2]
[355140930,1740934283293,-1640.73,0.00027741,2]
[355140931,1740934283303,-735.42,0.00027741,2]
[355140932,1740934283313,-1038.58,0.00027741,2]
[355140933,1740934283325,-1324.37,0.00027741,2]
[355140934,1740934283336,-1030.42,0.00027741,2]
[355140935,1740934283347,-1008.61,0.00027741,2]
[355140936,1740934283357,-1220.49,0.00027741,2]
[355140937,1740934283367,-974.65,0.00027741,2]
[355140938,1740934283377,-796.26,0.00027741,2]
[355140939,1740934283386,-1883.74,0.00027741,2]
[355140940,1740934283396,-1450.26,0.00027741,2]
[355140941,1740934283406,-618.6,0.00027741,2]
[355140942,1740934283415,-1000.0,0.00027741,2]
[355140943,1740934283425,-1403.46,0.00027741,2]
[355140944,1740934283435,-500.0,0.00027741,2]
[355140945,1740934283450,-500.0,0.00027741,2]
[355140946,1740934283478,-746.03,0.00027741,2]
[355140947,1740934283501,-816.44,0.00027741,2]
[355140948,1740934283534,-1361.09,0.00027741,2]
[355140949,1740934283553,-423.08,0.00027741,2]
[355140950,1740934283574,-500.0,0.00027741,2]
[355140951,1740934283600,-500.0,0.00027741,2]
[355140952,1740934283622,-971.76,0.00027741,2]
[355140953,1740934283647,-1747.03,0.00027741,2]
[355140954,1740934283669,-1287.02,0.00027741,2]
[355140955,1740934283694,-863.73,0.00027741,2]
[355140956,1740934283714,-735.96,0.00027741,2]
[355140957,1740934283739,-905.51,0.00027741,2]
[355140958,1740934283756,-982.53,0.00027741,2]
[355140959,1740934283787,-1390.21,0.00027741,2]
[355140960,1740934283809,-595.81,0.00027741,2]
[355140961,1740934283828,-583.19,0.00027741,2]
[355140962,1740934283848,-598.39,0.00027741,2]
[355140963,1740934283866,-500.0,0.00027741,2]
[355140964,1740934283887,-1233.81,0.00027741,2]
[355140965,1740934283907,-2920.05,0.00027741,2]
[355140966,1740934283928,-890.18,0.00027741,2]
[355140967,1740934283948,-500.0,0.00027741,2]
[355140968,1740934283968,-4216.33,0.00027741,2]
[355140969,1740934283987,-825.61,0.00027741,2]
[355140970,1740934284006,-1005.08,0.00027741,2]
[355140971,1740934284031,-721.2,0.00027741,2]
[355140972,1740934284051,-500.0,0.00027741,2]
[355140973,1740934284071,-500.0,0.00027741,2]
[355140974,1740934284089,-3081.8,0.00027741,2]
[355140975,1740934284109,-651.66,0.00027741,2]
[355140976,1740934284128,-300.0,0.00027742,10]
[355140977,1740934284147,-500.0,0.00027742,2]
[355140978,1740934284166,-582.32,0.00027742,2]
[355140979,1740934284184,-984.08,0.00027742,2]
[355140980,1740934284203,-500.0,0.00027742,2]
[355140981,1740934284221,-500.0,0.00027742,2]
[355140982,1740934284240,-975.84,0.00027742,2]
[355140983,1740934284260,-500.0,0.00027742,2]
[355140984,1740934284281,-596.68,0.00027742,2]
[355140985,1740934284301,-500.0,0.00027742,2]
[355140986,1740934284324,-500.0,0.00027742,2]
[355140987,1740934284345,-649.95,0.00027742,2]
[355140988,1740934284371,-500.0,0.00027742,2]
[355140989,1740934284390,-913.81,0.00027742,2]
[355140990,1740934284410,-500.0,0.00027742,2]
[355140991,1740934284432,-826.37,0.00027742,2]
[355140992,1740934284451,-500.0,0.00027742,2]
[355140993,1740934284471,-523.21,0.00027742,2]
[355140994,1740934284492,-500.0,0.00027742,2]
[355140995,1740934284517,-500.0,0.00027742,2]
[355140996,1740934284537,-500.0,0.00027742,2]
[355140997,1740934284559,-500.0,0.00027742,2]
[355140998,1740934284579,-500.0,0.00027742,2]
[355140999,1740934284599,-500.0,0.00027742,2]
[355141000,1740934284620,-652.27,0.00027742,2]
[355141001,1740934284640,-603.66,0.00027742,2]
[355141002,1740934284660,-500.0,0.00027742,2]
[355141003,1740934284679,-959.87,0.00027742,2]
[355141004,1740934284699,-500.0,0.00027742,2]
[355141005,1740934284721,-273.088224,0.00027742,2]
[355141006,1740934284739,-500.0,0.00027742,2]
[355141007,1740934284759,-500.0,0.00027742,2]
[355141008,1740934284786,-500.0,0.00027742,2]
[355141009,1740934284807,-500.0,0.00027742,2]
[355141010,1740934284829,-500.0,0.00027742,2]
[355141011,1740934284850,-553.49,0.00027742,2]
[355141012,1740934284874,-500.0,0.00027742,2]
[355141013,1740934284895,-500.0,0.00027742,2]
[355141014,1740934284913,-500.0,0.00027742,2]
[355141015,1740934284933,-490.051962,0.00027742,2]
[355141016,1740934284954,-586.59,0.00027742,2]
[355141017,1740934284972,-500.0,0.00027742,2]
[355141018,1740934284990,-500.0,0.00027742,2]
[355141019,1740934285010,-612.36,0.00027742,2]
[355141020,1740934285032,-500.0,0.00027742,2]
[355141021,1740934285053,-500.0,0.00027742,2]
[355141022,1740934285073,-500.0,0.00027742,2]
[355141023,1740934285265,-500.0,0.00027742,2]
[355141024,1740934285310,-672.77,0.00027742,2]
[355141025,1740934285321,-645.05,0.00027742,2]
[355141026,1740934285330,-500.0,0.00027742,2]
[355141027,1740934285341,-500.0,0.00027742,2]
[355141028,1740934285352,-500.0,0.00027742,2]
[355141029,1740934285362,-901.95,0.00027742,2]
[355141030,1740934285372,-1081.17,0.00027742,2]
[355141031,1740934285383,-500.0,0.00027742,2]
[355141032,1740934285393,-500.0,0.00027742,2]
[355141033,1740934285404,-500.0,0.00027742,2]
[355141034,1740934285414,-1000.0,0.00027742,2]
[355141035,1740934285424,-500.0,0.00027742,2]
[355141036,1740934285434,-839.39,0.00027742,2]
[355141037,1740934285445,-500.0,0.00027742,2]
[355141038,1740934285455,-500.0,0.00027742,2]
[355141039,1740934285465,-500.0,0.00027742,2]
[355141040,1740934285476,-500.0,0.00027742,2]
[355141041,1740934285486,-500.0,0.00027742,2]
[355141042,1740934285495,-500.0,0.00027742,2]
[355141043,1740934285506,-1654.66,0.00027742,2]
[355141044,1740934285521,-500.0,0.00027742,2]
[355141045,1740934285531,-500.0,0.00027742,2]
[355141046,1740934285541,-500.0,0.00027742,2]
[355141047,1740934285552,-500.0,0.00027742,2]
[355141048,1740934285562,-500.0,0.00027742,2]
[355141049,1740934285571,-500.0,0.00027742,2]
[355141050,1740934285581,-500.0,0.00027742,2]
[355141051,1740934285591,-712.05,0.00027742,2]
[355141052,1740934285601,-500.0,0.00027742,2]
[355141053,1740934285612,-959.72,0.00027742,2]
[355141054,1740934285621,-500.0,0.00027742,2]
[355141055,1740934285631,-500.0,0.00027742,2]
[355141056,1740934285641,-500.0,0.00027742,2]
[355141057,1740934285652,-363.94448631,0.00027742,2]
[355141058,1740934285662,-500.0,0.00027742,2]
[355141059,1740934285672,-500.0,0.00027742,2]
[355141060,1740934285682,-1209.06,0.00027742,2]
[355141061,1740934285692,-500.0,0.00027742,2]
[355141062,1740934285705,-500.0,0.00027742,2]
[355141063,1740934285715,-500.0,0.00027742,2]
[355141064,1740934285724,-500.0,0.00027742,2]
[355141065,1740934285738,-722.24,0.00027742,2]
[355141066,1740934285750,-500.0,0.00027742,2]
[355141067,1740934285760,-1134.81,0.00027742,2]
[355141068,1740934285775,-1023.26,0.00027742,2]
[355141069,1740934285785,-500.0,0.00027742,2]
[355141070,1740934285796,-500.0,0.00027742,2]
[355141071,1740934285805,-500.0,0.00027742,2]
[355141072,1740934285816,-500.0,0.00027742,2]
[355141073,1740934285827,-1428.61,0.00027742,2]
[355141074,1740934285837,-500.0,0.00027742,2]
[355141075,1740934285847,-500.0,0.00027742,2]
[355141076,1740934285857,-500.0,0.00027742,2]
[355141077,1740934285867,-500.0,0.00027742,2]
[355141078,1740934285877,-500.46,0.00027742,2]
[355141079,1740934285887,-500.0,0.00027742,2]
[355141080,1740934285898,-500.0,0.00027742,2]
[355141081,1740934285908,-500.0,0.00027742,2]
[355141082,1740934285919,-2956.28,0.00027742,2]
[355141083,1740934285929,-500.0,0.00027742,2]
[355141084,1740934285939,-1296.11,0.00027742,2]
[355141085,1740934285949,-812.76,0.00027742,2]
[355141086,1740934285959,-500.0,0.00027742,2]
[355141087,1740934285969,-500.0,0.00027742,2]
[355141088,1740934285979,-500.0,0.00027742,2]
[355141089,1740934285989,-2610.05,0.00027742,2]
[355141090,1740934285999,-500.0,0.00027742,2]
[355141091,1740934286008,-1547.24,0.00027742,2]
[355141092,1740934286022,-744.75,0.00027742,2]
[355141093,1740934286031,-500.0,0.00027742,2]
[355141094,1740934286041,-1771.49,0.00027742,2]
[355141095,1740934286050,-568.26,0.00027742,2]
[355141096,1740934286060,-500.0,0.00027742,2]
[355141097,1740934286070,-5169.12,0.00027742,2]
[355141098,1740934286081,-2526.23,0.00027742,2]
[355141099,1740934286090,-500.0,0.00027742,2]
[355141100,1740934286100,-655.54,0.00027742,2]
[355141101,1740934286109,-2592.13,0.00027742,2]
[355141102,1740934286119,-500.0,0.00027742,2]
[355141103,1740934286129,-506.29928854,0.00027742,2]
[355141104,1740934286140,-500.0,0.00027742,2]
[355141105,1740934286151,-564.51,0.00027742,2]
[355141106,1740934286161,-500.0,0.00027742,2]
[355141107,1740934286171,-500.0,0.00027742,2]
[355141108,1740934286180,-2451.93,0.00027742,2]
[355141109,1740934286191,-2438.01,0.00027742,2]
[355141110,1740934286202,-500.0,0.00027742,2]
[355141111,1740934286211,-500.0,0.00027742,2]
[355141112,1740934286220,-587.10310903,0.00027742,2]
[355141113,1740934286230,-500.0,0.00027742,2]
[355141114,1740934286239,-1213.6,0.00027742,2]
[355141115,1740934286249,-500.0,0.00027742,2]
[355141116,1740934286258,-691.28,0.00027742,2]
[355141117,1740934286271,-500.0,0.00027742,2]
[355141118,1740934286281,-2332.25,0.00027742,2]
[355141119,1740934286291,-500.0,0.00027742,2]
[355141120,1740934286300,-564.54532913,0.00027742,2]
[355141121,1740934286310,-500.0,0.00027742,2]
[355141122,1740934286319,-500.0,0.00027742,2]
[355141123,1740934286329,-2311.03,0.00027742,2]
[355141124,1740934286339,-500.0,0.00027742,2]
[355141125,1740934286348,-500.0,0.00027742,2]
[355141126,1740934286359,-1410.42,0.00027742,2]
[355141127,1740934286368,-500.0,0.00027742,2]
[355141128,1740934286379,-1370.74,0.00027742,2]
[355141129,1740934286389,-500.0,0.00027742,2]
[355141130,1740934286399,-1057.92,0.00027742,2]
[355141131,1740934286409,-500.0,0.00027742,2]
[355141132,1740934286419,-2057.85,0.00027742,2]
[355141133,1740934286429,-500.0,0.00027742,2]
[355141134,1740934286439,-500.0,0.00027742,2]
[355141135,1740934286449,-964.74,0.00027742,2]
[355141136,1740934286460,-500.0,0.00027742,2]
[355141137,1740934286470,-500.0,0.00027742,2]
[355141138,1740934286480,-2075.85,0.00027742,2]
[355141139,1740934286491,-500.0,0.00027742,2]
[355141140,1740934286501,-500.0,0.00027742,2]
[355141141,1740934286511,-764.34,0.00027742,2]
[355141142,1740934286526,-1881.44,0.00027742,2]
[355141143,1740934286537,-2611.42,0.00027742,2]
[355141144,1740934286547,-500.0,0.00027742,2]
[355141145,1740934286557,-500.0,0.00027742,2]
[355141146,1740934286567,-2594.09,0.00027742,2]
[355141147,1740934286577,-593.67,0.00027742,2]
[355141148,1740934286587,-500.0,0.00027742,2]
[355141149,1740934286597,-500.0,0.00027742,2]
[355141150,1740934286607,-500.0,0.00027742,2]
[355141151,1740934286617,-500.0,0.00027742,2]
[355141152,1740934286627,-500.0,0.00027742,2]
[355141153,1740934286637,-788.64,0.00027742,2]
[355141154,1740934286647,-631.11,0.00027742,2]
[355141155,1740934286656,-3199.91,0.00027742,2]
[355141156,1740934286666,-500.0,0.00027742,2]
[355141157,1740934286676,-500.0,0.00027742,2]
[355141158,1740934286686,-200.0,0.00027742,2]
[355141159,1740934286695,-500.0,0.00027742,2]
[355141160,1740934286710,-1556.3,0.00027742,2]
[355141161,1740934286720,-726.48,0.00027742,2]
[355141162,1740934286730,-500.0,0.00027742,2]
[355141163,1740934286739,-500.0,0.00027742,2]
[355141164,1740934286752,-500.0,0.00027742,2]
[355141165,1740934286763,-500.0,0.00027742,2]
[355141166,1740934286775,-500.0,0.00027742,2]
[355141167,1740934286785,-531.3,0.00027742,2]
[355141168,1740934286795,-500.0,0.00027742,2]
[355141169,1740934286806,-500.0,0.00027742,2]
[355141170,1740934286818,-2236.18,0.00027742,2]
[355141171,1740934286829,-853.87,0.00027742,2]
[355141172,1740934286840,-500.0,0.00027742,2]
[355141173,1740934286850,-500.0,0.00027742,2]
[355141174,1740934286861,-500.0,0.00027742,2]
[355141175,1740934286871,-500.0,0.00027742,2]
[355141176,1740934286881,-500.0,0.00027742,2]
[355141177,1740934286891,-1556.69,0.00027742,2]
[355141178,1740934286901,-1959.36,0.00027742,2]
[355141179,1740934286911,-620.67298144,0.00027742,2]
[355141180,1740934286920,-500.0,0.00027742,2]
[355141181,1740934286930,-639.1,0.00027742,2]
[355141182,1740934286940,-500.0,0.00027742,2]
[355141183,1740934286951,-1522.47,0.00027742,2]
[355141184,1740934286961,-633.68,0.00027742,2]
[355141185,1740934286973,-500.0,0.00027742,2]
[355141186,1740934286984,-500.0,0.00027742,2]
[355141187,1740934286994,-442.49632988,0.00027742,2]
[355141188,1740934287003,-2000.0,0.00027742,30]
[355141189,1740934287016,-537.17,0.00027742,2]
[355141190,1740934287027,-500.0,0.00027742,2]
[355141191,1740934287038,-500.0,0.00027742,2]
[355141192,1740934287049,-500.0,0.00027742,2]
[355141193,1740934287060,-500.0,0.00027742,2]
[355141194,1740934287071,-694.32,0.00027742,2]
[355141195,1740934287083,-500.0,0.00027742,2]
[355141196,1740934287094,-500.0,0.00027742,2]
[355141197,1740934287104,-500.0,0.00027742,2]
[355141198,1740934287115,-500.0,0.00027742,2]
[355141199,1740934287125,-500.0,0.00027742,2]
[355141200,1740934287136,-1357.3,0.00027742,2]
[355141201,1740934287146,-500.0,0.00027742,2]
[355141202,1740934287156,-615.16,0.00027742,2]
[355141203,1740934287166,-580.36533417,0.00027742,2]
[355141204,1740934287177,-500.0,0.00027742,2]
[355141205,1740934287188,-500.0,0.00027742,2]
[355141206,1740934287199,-500.0,0.00027742,2]
[355141207,1740934287210,-500.0,0.00027742,2]
[355141208,1740934287220,-588.66,0.00027742,2]
[355141209,1740934287230,-500.0,0.00027742,2]
[355141210,1740934287242,-476.16741996,0.00027742,2]
[355141211,1740934287416,-1763.62,0.00027742,2]
[355141212,1740934287428,-1461.0,0.00027742,2]
[355141213,1740934287439,-500.0,0.00027742,2]
[355141214,1740934287449,-500.0,0.00027742,2]
[355141215,1740934287459,-500.0,0.00027742,2]
[355141216,1740934287468,-510.32,0.00027742,2]
[355141217,1740934287478,-533.63300267,0.00027742,2]
[355141218,1740934287487,-781.22,0.00027742,2]
[355141219,1740934287497,-500.0,0.00027742,2]
[355141220,1740934287507,-974.41,0.00027742,2]
[355141221,1740934287521,-500.0,0.00027742,2]